fUSD/lending_fUSD_20241216
["ID","MTS","AMOUNT","RATE_DAILY","PERIOD"]
[345553255,1734336738507,275.26,0.000187,2]
[345553258,1734337648158,-4398.18228772,0.00015637,2]
[345553259,1734337649150,-203.84966685,0.00015637,2]
[345553261,1734337745084,-379.65804543,0.00015637,2]
[345553262,1734337745105,-175.97,0.00015638,2]
[345553263,1734337745131,-376.51,0.00016625,2]
[345553264,1734337745151,-125.95747235,0.00017371,2]
[345553265,1734337753109,-24.04252765,0.00017371,2]
[345553266,1734337755104,-1000.0,0.0001847,2]
[345553267,1734337755129,-394.33,0.00018478,2]
[345553268,1734337755296,-238.81,0.00018486,2]
[345553269,1734337755318,-376.51,0.00018889,2]
[345553270,1734337755339,-169.21,0.00018903,2]
[345553271,1734337755361,-11392.86283216,0.00019,2]
[345553272,1734337758148,-1648.18634097,0.00019,2]
[345553273,1734337758169,-693.64,0.00019256,2]
[345553274,1734337758191,-693.64,0.00019261,2]
[345553275,1734337758212,-693.64,0.00019266,2]
[345553276,1734337758234,-693.64,0.00019271,2]
[345553277,1734337758255,-693.64,0.00019276,2]
[345553278,1734337758276,-693.64,0.00019281,2]
[345553279,1734337758297,-693.64,0.00019286,2]
[345553280,1734337758317,-693.64,0.00019291,2]
[345553281,1734337758338,-693.64,0.00019296,2]
[345553282,1734337758358,-693.64,0.00019301,2]
[345553283,1734337758385,-693.64,0.00019306,2]
[345553284,1734337758410,-693.64,0.00019311,2]
[345553285,1734337758432,-471.93,0.00019314,2]
[345553286,1734337758455,-693.64,0.00019317,2]
[345553287,1734337758476,-693.64,0.00019322,2]
[345553288,1734337758497,-693.64,0.00019327,2]
[345553289,1734337758518,-693.64,0.00019332,2]
[345553290,1734337758539,-693.64,0.00019337,2]
[345553291,1734337758561,-693.64,0.00019342,2]
[345553292,1734337758582,-693.64,0.00019347,2]
[345553293,1734337758604,-693.64,0.00019352,2]
[345553294,1734337758626,-3823.73606491,0.00019489,2]
[345553295,1734337758650,-250.0,0.00019528,2]
[345553296,1734337758671,-160.5,0.00019547,2]
[345553297,1734337758691,-1234.6151,0.000197,2]
[345553298,1734337758712,-575.06617714,0.000197,2]
[345553299,1734337758732,-38416.5738,0.000197,2]
[345553300,1734337758754,-1858.03437893,0.000197,2]
[345553301,1734337758775,-1858.0343789,0.00019722,2]
[345553302,1734337758795,-1858.0343789,0.00019744,2]
[345553303,1734337758816,-1858.0343789,0.00019767,2]
[345553304,1734337758838,-80600.86175425,0.000198,4]
[345553336,1734337832060,-169.0,0.00019046,2]
[345553337,1734337832070,-168.5,0.000197,3]
[345553338,1734337832080,-251.48403818,0.000197,2]
[345553339,1734337832090,-1858.0343789,0.00019789,2]
[345553340,1734337832099,-300.0,0.000198,7]
[345553341,1734337832109,-18207.0141854,0.000198,2]
[345553360,1734337837656,-210.12461969,0.000197,2]
[345553361,1734337837666,-1867.135615,0.000198,2]
[345553362,1734337837711,-11786.65839099,0.000198,2]
[345553363,1734337837722,-521.74533198,0.000198,2]
[345553364,1734337837824,-72233.4880953,0.000198,2]
[345553365,1734337837836,-503.598,0.000198,2]
[345553366,1734337837849,-542.92,0.000198,2]
[345553367,1734337837883,-164.72018812,0.000197,2]
[345553368,1734337837892,-115889.99175279,0.000198,2]
[345553369,1734337837904,-29305.6226276,0.000198,2]
[345553370,1734337838050,-7448.4004895,0.000198,2]
[345553496,1734337839674,-750.0,0.000198,2]
[345553510,1734337839785,-3142.80000004,0.000198,2]
[345553512,1734337839796,-3928.04104428,0.000198,2]
[345553518,1734337839843,-525.47307749,0.000198,2]
[345553520,1734337839855,-1627.05411205,0.000198,2]
[345553826,1734337842820,-3051.9476291,0.000198,2]
[345553839,1734337842932,-28820.4,0.000198,2]
[345553841,1734337842948,-3296.2181152,0.000198,2]
[345553982,1734337845756,-3275.7499995,0.000198,2]
[345553983,1734337846109,-305.0151426,0.000198,2]
[345553984,1734337846143,-3951.0,0.000198,2]
[345553992,1734337910952,184.5,0.00010137,2]
[345553993,1734337911151,184.5,0.00016813,2]
[345554005,1734338451017,158.26,0.00019064,30]
[345554006,1734338747132,-420.89,0.00017141,2]
[345554007,1734338747156,-846.57520915,0.00018,2]
[345554008,1734338747178,-1023.95,0.00018779,2]
[345554009,1734338747198,-250.0,0.00018895,2]
[345554010,1734338747218,-150.0,0.00018904,2]
[345554011,1734338747241,-958.46,0.00018916,2]
[345554012,1734338747267,-151.88213457,0.00018922,2]
[345554014,1734338826101,-207.22538048,0.00018854,2]
[345554015,1734338826124,-94.9984837,0.00018922,2]
[345554016,1734338846085,-249.31677317,0.00018854,2]
[345554017,1734338848136,-33873.3627682,0.00018854,2]
[345554018,1734338849106,-5039.90495056,0.00018854,2]
[345554019,1734338849131,-637.64938173,0.00018922,2]
[345554020,1734338849154,-707.86,0.00018935,2]
[345554021,1734338849177,-1000.0,0.00018944,2]
[345554022,1734338849199,-3077.70389648,0.00018954,2]
[345554023,1734338850107,-366.07473739,0.00018954,2]
[345554024,1734338850139,-604.88074023,0.00018954,2]
[345554025,1734338965271,-1729.06434552,0.00018909,2]
[345554026,1734338967108,-591.85565448,0.00018909,2]
[345554027,1734338967134,-346.82,0.00018909,2]
[345554028,1734338967163,-346.82,0.00018914,2]
[345554029,1734338967185,-346.82,0.00018919,2]
[345554030,1734338967207,-346.82,0.00018924,2]
[345554031,1734338967229,-346.82,0.00018929,2]
[345554032,1734338967251,-346.82,0.00018934,2]
[345554033,1734338967274,-346.82,0.00018939,2]
[345554034,1734338967297,-346.82,0.00018944,2]
[345554035,1734338967319,-346.82,0.00018949,2]
[345554036,1734338967343,-346.82,0.00018954,2]
[345554037,1734338967367,-346.82,0.00018959,2]
[345554038,1734338967388,-346.82,0.00018964,2]
[345554039,1734338967413,-346.82,0.00018969,2]
[345554040,1734338967434,-377.54,0.00018973,2]
[345554041,1734338967460,-346.82,0.00018974,2]
[345554042,1734338967482,-346.82,0.00018979,2]
[345554043,1734338967504,-346.82,0.00018984,2]
[345554044,1734338967525,-346.82,0.00018988,2]
[345554045,1734338967550,-346.82,0.00018993,2]
[345554046,1734338967572,-346.82,0.00018998,2]
[345554047,1734338967595,-572.781,0.00019,2]
[345554048,1734338967615,-379.9897461,0.00019,2]
[345554049,1734338967636,-346.82,0.00019003,2]
[345554050,1734338967659,-250.0,0.00019013,2]
[345554051,1734338967680,-420.89,0.00019405,2]
[345554052,1734338967701,-502.70073001,0.000197,2]
[345554053,1734338967723,-977.64992428,0.000197,2]
[345554054,1734338967744,-656.37754513,0.00019722,2]
[345554055,1734338996376,378.8,0.00017038,2]
[345554065,1734339031956,-302.03,0.0001897,2]
[345554066,1734339031970,-51.700012,0.00019301,2]
[345554067,1734339031983,-327.099988,0.00019301,2]
[345554068,1734339031993,-220.0942995,0.00019722,2]
[345554069,1734339032014,-101.17807963,0.00019722,2]
[345554070,1734339032024,-756.59173286,0.00019744,2]
[345554071,1734339032072,-221.0581914,0.00019744,2]
[345554072,1734339032082,-502.70072999,0.0001975,2]
[345554073,1734339032092,-977.64992426,0.00019767,2]
[345554074,1734339032102,-1935.0,0.0001978,2]
[345554075,1734339032112,-977.64992426,0.00019789,2]
[345554076,1734339032121,-5765.1900354,0.00019799,2]
[345554077,1734339032131,-3120.75119469,0.00019799,2]
[345554078,1734339032349,-27.7018637,0.00018946,2]
[345554084,1734339037862,-326.2281363,0.00018946,2]
[345554085,1734339037872,-30.34341146,0.00019799,2]
[345554086,1734339037883,-395.30039385,0.00019799,2]
[345554087,1734339037893,-187.184,0.00019799,2]
[345554088,1734339037905,-29021.90034915,0.000198,2]
[345554089,1734339037916,-9276.65135089,0.000198,2]
[345554090,1734339037931,-2003.66676267,0.000198,2]
[345554091,1734339037945,-3980.29344611,0.000198,2]
[345554092,1734339037957,-1046.7,0.000198,2]
[345554093,1734339038519,-508.31475931,0.000198,2]
[345554094,1734339038530,-1866.88,0.000198,2]
[345554097,1734339040055,-707.61041849,0.000198,2]
[345554098,1734339040067,-4671.14,0.000198,2]
[345554099,1734339040111,-19815.08288886,0.000198,2]
[345554100,1734339041885,-32060.00933479,0.000198,2]
[345554107,1734339042935,-7208.5,0.000198,2]
[345554111,1734339042948,-672.43945261,0.000198,2]
[345554120,1734339042987,-1078.88186558,0.000198,2]
[345554123,1734339042999,-7318.17765225,0.000198,2]
[345554133,1734339043044,-1391.47091743,0.000198,2]
[345554135,1734339043054,-164.72018812,0.000198,2]
[345554137,1734339043064,-1210.41889446,0.000198,2]
[345554142,1734339043098,-789.58110554,0.000198,2]
[345554144,1734339043107,-200.0,0.000198,2]
[345554146,1734339043117,-502.70072999,0.000198,2]
[345554148,1734339043127,-2842.42037,0.000198,2]
[345554150,1734339043136,-300.0,0.000198,7]
[345554151,1734339043146,-977.64992426,0.00019811,2]
[345554152,1734339043155,-977.64992426,0.00019833,2]
[345554153,1734339043164,-502.70072999,0.0001985,2]
[345554154,1734339043173,-977.64992426,0.00019856,2]
[345554155,1734339043183,-627.21559069,0.00019878,2]
[345554156,1734339043195,-350.43433357,0.00019878,2]
[345554157,1734339043204,-1955.0,0.000199,2]
[345554158,1734339043214,-164.72018812,0.000199,2]
[345554159,1734339043225,-502.70072999,0.000199,2]
[345554160,1734339043235,-977.64992426,0.000199,2]
[345554161,1734339043244,-282.67,0.000199,2]
[345554162,1734339043254,-212.00746971,0.000199,2]
[345554163,1734339043263,-212.0,0.000199,2]
[345554164,1734339043272,-366.63723137,0.000199,2]
[345554165,1734339043284,-362.67030874,0.000199,2]
[345554166,1734339043293,-302.03,0.00019918,2]
[345554167,1734339043303,-1401.0,0.00019945,2]
[345554168,1734339043312,-2096.0,0.00019945,2]
[345554169,1734339043322,-168.83101149,0.0001997,2]
[345554170,1734339043331,-2044.0,0.00019973,2]
[345554171,1734339043340,-4314.0,0.00019973,2]
[345554172,1734339043349,-662.0,0.00019973,2]
[345554173,1734339043359,-500.0,0.00019973,2]
[345554174,1734339043369,-500.89593824,0.00019973,2]
[345554175,1734339043378,-593.13251947,0.00019973,2]
[345554176,1734339043388,-153.68080552,0.00019979,2]
[345554177,1734339043397,-550.0,0.00019979,2]
[345554178,1734339043407,-22706.71363055,0.0001998,4]
[345554181,1734339043607,-21.60423186,0.0001998,4]
[345554182,1734339043628,-348.51572742,0.0001998,4]
[345554183,1734339043709,-12715.14027503,0.0001998,4]
[345554184,1734339043723,-5098.79398675,0.0001998,4]
[345554185,1734339043734,-1668.02297108,0.0001998,4]
[345554186,1734339043745,-993.12736041,0.0001998,4]
[345554202,1734339045802,-1046.8368,0.000199,2]
[345554230,1734339046079,-707.52949158,0.000199,2]
[345554232,1734339046088,-39460.42667342,0.0001998,4]
[345554234,1734339046099,-40671.38551,0.0001998,4]
[345554235,1734339190682,1134.05,0.00019131,120]
[345554236,1734339736077,156.19,0.00010137,2]
[345554238,1734339957135,-380.17573438,0.00016833,2]
[345554239,1734340039230,-15.58426562,0.00016833,2]
[345554240,1734340039255,-177.39,0.00018435,2]
[345554241,1734340039277,-9.54473773,0.00018435,2]
[345554242,1734340052123,-240.45526227,0.00018435,2]
[345554243,1734340052150,-660.00758826,0.00018476,2]
[345554244,1734340054161,-47.61241174,0.00018476,2]
[345554245,1734340054187,-1003.00795655,0.000186,5]
[345554246,1734340054211,-1000.0,0.00018664,2]
[345554247,1734340054235,-282.51,0.00018684,2]
[345554248,1734340054259,-248.3,0.00018772,2]
[345554249,1734340054289,-1577.69,0.00018821,2]
[345554250,1734340054312,-500.0,0.00018901,2]
[345554251,1734340054336,-300.0,0.00018965,2]
[345554252,1734340054359,-17203.94930933,0.00018966,2]
[345554253,1734340152071,-11857.93261871,0.00018814,2]
[345554254,1734340152102,-6853.81816,0.00018814,2]
[345554255,1734340168868,-3379.75922129,0.00018814,2]
[345554256,1734340174112,-250.0,0.00018831,2]
[345554257,1734340174138,-17196.63069067,0.00018966,2]
[345554258,1734340174164,-500.0,0.00018999,2]
[345554259,1734340174187,-152.72509758,0.00018999,2]
[345554260,1734340174210,-500.0,0.00018999,2]
[345554261,1734340174234,-554.95633561,0.00018999,2]
[345554262,1734340174257,-500.0,0.00018999,2]
[345554263,1734340174280,-500.0,0.00018999,2]
[345554264,1734340174301,-445.59112099,0.00018999,2]
[345554265,1734340174324,-500.0,0.00018999,2]
[345554266,1734340174345,-433.00882031,0.00018999,2]
[345554267,1734340174367,-3668.56899574,0.00019,3]
[345554268,1734340174389,-23065.481862,0.00019,2]
[345554270,1734340215785,179.85,0.00013699,2]
[345554275,1734340232091,-30256.58348348,0.00019,2]
[345554276,1734340232101,-548.936,0.00019,2]
[345554277,1734340232111,-1000.0,0.00019,7]
[345554278,1734340232121,-20750.64261661,0.00019,2]
[345554279,1734340232201,-1193.2,0.00019,2]
[345554280,1734340232314,-2620.3073268,0.00019,2]
[345554298,1734340238015,-9227.37601,0.00019,2]
[345554299,1734340238071,-6321.23044,0.00019,2]
[345554300,1734340238090,-22656.065257,0.00019,2]
[345554301,1734340238128,-3603.55302124,0.00019,2]
[345554302,1734340238252,-10386.25860881,0.00019,2]
[345554303,1734340238485,-838.21407533,0.00019,2]
[345554304,1734340238497,-12301.5995105,0.00019,2]
[345554457,1734340240376,-10389.86750969,0.00019,2]
[345554465,1734340243059,-1796.68899656,0.00019,2]
[345554467,1734340243437,-18059.99662746,0.00019,2]
[345554468,1734340243454,-2832.54778646,0.00019095,2]
[345554469,1734340246104,-2801.07059239,0.00019095,2]
[345554470,1734340246117,-1988.06162115,0.00019095,2]
[345554471,1734340246126,-395.76,0.00019097,2]
[345554472,1734340246135,-800.0,0.00019123,2]
[345554473,1734340246144,-500.0,0.000192,16]
[345554474,1734340246154,-668.95,0.00019297,2]
[345554475,1734340246163,-500.0,0.000194,18]
[345554476,1734340246172,-1949.01,0.000195,2]
[345554477,1734340246181,-417.0985379,0.00019588,2]
[345554478,1734340246190,-500.0,0.000196,19]
[345554479,1734340246204,-168.14,0.00019618,2]
[345554480,1734340246213,-248.3,0.00019711,2]
[345554481,1734340246223,-500.0,0.000198,20]
[345554482,1734340246232,-214.77875781,0.00019878,2]
[345554483,1734340246242,-8746.8691,0.00019879,2]
[345554484,1734340246254,-166.98675495,0.0001988,2]
[345554485,1734340246263,-536.33876914,0.0001988,2]
[345554486,1734340246273,-536.3387691,0.00019883,2]
[345554487,1734340246283,-166.98675492,0.00019885,2]
[345554488,1734340246292,-536.3387691,0.00019887,2]
[345554489,1734340246302,-1764.16,0.0001989,2]
[345554490,1734340246312,-1764.16,0.0001989,2]
[345554491,1734340246322,-1764.16,0.0001989,2]
[345554492,1734340246331,-1764.16,0.0001989,2]
[345554493,1734340246340,-1764.16,0.0001989,2]
[345554494,1734340246349,-1764.16,0.0001989,2]
[345554495,1734340246357,-1764.16,0.0001989,2]
[345554496,1734340246366,-1764.16,0.0001989,2]
[345554497,1734340246375,-1764.16,0.0001989,2]
[345554498,1734340246384,-1764.16,0.0001989,2]
[345554499,1734340246394,-166.98675492,0.0001989,2]
[345554500,1734340246403,-536.3387691,0.0001989,2]
[345554502,1734340246412,-536.3387691,0.00019893,2]
[345554504,1734340246421,-166.98675492,0.00019895,2]
[345554505,1734340246431,-536.3387691,0.00019897,2]
[345554506,1734340246440,-158315.27889929,0.00019899,4]
[345554507,1734340246463,-500.0,0.00019899,4]
[345554508,1734340246473,-1155.32004323,0.00019899,4]
[345554509,1734340246492,-123310.43295195,0.00019899,4]
[345554510,1734340246602,-5231.93330471,0.00019899,4]
[345554511,1734340246613,-984.91559499,0.00019899,4]
[345554512,1734340650076,166.05,0.00010137,2]
[345554517,1734340988173,5216.77800009,0.00015001,2]
[345554518,1734340991918,204.937695,0.000191,28]
[345554519,1734341054123,200.00000005,0.00021,120]
[345554520,1734341135108,-255.81633582,0.00016788,2]
[345554521,1734341143601,161.95,0.00017976,30]
[345554524,1734341242148,-134.21366418,0.00016788,2]
[345554525,1734341242172,-166.05,0.00016813,2]
[345554526,1734341242193,-250.0,0.00017818,2]
[345554527,1734341242214,-234.72,0.00018417,2]
[345554528,1734341242236,-191.60667835,0.00018422,2]
[345554541,1734341347096,-453.46426398,0.0001842,2]
[345554542,1734341347119,-43.11332165,0.00018422,2]
[345554543,1734341347139,-234.72,0.00018427,2]
[345554544,1734341347160,-234.72,0.00018432,2]
[345554545,1734341347180,-234.72,0.00018437,2]
[345554546,1734341347201,-234.72,0.00018441,2]
[345554547,1734341347226,-234.72,0.00018446,2]
[345554548,1734341347248,-234.72,0.00018451,2]
[345554549,1734341347269,-234.72,0.00018456,2]
[345554550,1734341347297,-1000.0,0.00018456,2]
[345554551,1734341347319,-234.72,0.00018461,2]
[345554552,1734341347340,-234.72,0.00018466,2]
[345554553,1734341347364,-234.72,0.00018471,2]
[345554554,1734341347384,-234.72,0.00018475,2]
[345554555,1734341347405,-234.72,0.0001848,2]
[345554556,1734341347427,-234.72,0.00018485,2]
[345554557,1734341347450,-234.72,0.0001849,2]
[345554558,1734341347472,-395.82,0.00018491,2]
[345554559,1734341347495,-234.72,0.00018495,2]
[345554560,1734341347516,-234.72,0.000185,2]
[345554561,1734341347539,-234.72,0.00018504,2]
[345554562,1734341347559,-150.0,0.00018509,2]
[345554563,1734341347582,-234.72,0.00018509,2]
[345554564,1734341347608,-250.0,0.00018526,2]
[345554565,1734341347635,-651.14,0.00018568,2]
[345554566,1734341347656,-5.17101437,0.00018568,2]
[345554567,1734341370131,-294.82898563,0.00018568,2]
[345554568,1734341370152,-186.22,0.00018601,2]
[345554569,1734341370172,-250.0,0.00018627,2]
[345554570,1734341370192,-20449.53,0.0001866,2]
[345554571,1734341370212,-168.88,0.00018723,2]
[345554585,1734341432278,-176.8,0.00018871,2]
[345554586,1734341432288,-7665.31907123,0.00018871,2]
[345554587,1734341436273,-2128.11092877,0.00018871,2]
[345554588,1734341436283,-490.48,0.0001898,2]
[345554589,1734341436292,-499.74,0.0001898,2]
[345554590,1734341436302,-506.54,0.0001898,2]
[345554591,1734341436311,-491.9,0.0001898,2]
[345554592,1734341436320,-507.81,0.0001898,2]
[345554593,1734341436329,-499.33,0.0001898,2]
[345554594,1734341436338,-537.568,0.0001898,2]
[345554595,1734341436347,-5213.88174885,0.00019,2]
[345554596,1734341436587,-32872.0,0.00019,2]
[345554597,1734341436599,-957.55557787,0.00019,2]
[345554598,1734341436610,-862.75,0.00019,2]
[345554644,1734341438187,-540.0422886,0.00019,2]
[345554645,1734341438410,-5547.74016914,0.00019,2]
[345554646,1734341438421,-1578.43748,0.00019,2]
[345554647,1734341438432,-1893.96495137,0.00019,2]
[345554648,1734341438468,-3116.24059349,0.00019,2]
[345554649,1734341438659,-608.51003787,0.00019,2]
[345554650,1734341438674,-7230.14861993,0.00019,2]
[345554651,1734341438687,-287.06737832,0.00019,2]
[345554652,1734341438697,-200.0,0.00019,6]
[345554653,1734341438707,-769.47,0.00019041,2]
[345554654,1734341438718,-390.03,0.00019052,2]
[345554655,1734341438727,-800.0,0.00019096,2]
[345554656,1734341438736,-500.0,0.000191,6]
[345554657,1734341438746,-700.0,0.000192,7]
[345554659,1734341438755,-1000.0,0.000193,7]
[345554660,1734341438764,-1200.0,0.000194,7]
[345554661,1734341438773,-200.0,0.000195,7]
[345554662,1734341438782,-9163.77305052,0.00019599,2]
[345554663,1734341440200,-2477.12432777,0.00019599,2]
[345554664,1734341440212,-617.69507018,0.00019599,2]
[345554667,1734341443305,-28.42403739,0.00019599,2]
[345554668,1734341443330,-816.48145556,0.00019599,2]
[345554669,1734341443342,-2309.89325858,0.00019599,2]
[345554670,1734341443351,-178.7795897,0.000196,2]
[345554671,1734341443361,-200.0,0.000196,7]
[345554672,1734341443370,-746.0,0.000196,5]
[345554673,1734341443379,-1000.0,0.000196,3]
[345554674,1734341443388,-500.0,0.00019673,2]
[345554675,1734341443397,-500.0,0.00019673,2]
[345554676,1734341443409,-3985.90203232,0.00019689,2]
[345554677,1734341443499,-2894.78856355,0.00019689,2]
[345554693,1734341444875,2751.0,0.00018744,2]
[345554697,1734341446474,-560.7312877,0.00019689,2]
[345554698,1734341446484,-238.64306424,0.00019699,2]
[345554699,1734341446494,-462.23741982,0.00019699,2]
[345554700,1734341446503,-13444.53837763,0.000197,4]
[345554701,1734341446515,-57537.782715,0.000197,4]
[345554702,1734341446538,-10401.00682633,0.000197,4]
[345554703,1734341446553,-2496.61865781,0.000197,4]
[345554704,1734341446568,-8715.86954836,0.000197,4]
[345554705,1734341446583,-9904.92415593,0.000197,4]
[345554706,1734341446608,-258.96036809,0.000197,4]
[345554709,1734341673225,902.0,0.000195,120]
[345554710,1734341703148,159.84756609,9.973e-05,2]
[345554713,1734342002862,150.0,9.973e-05,2]
[345554714,1734342003039,150.0,9.973e-05,2]
[345554715,1734342003113,5718.57034874,0.00013649,2]
[345554716,1734342003404,5000.0,0.00013649,2]
[345554717,1734342003464,150.0,9.973e-05,2]
[345554718,1734342003641,150.0,9.973e-05,2]
[345554719,1734342003850,5000.0,0.00013649,2]
[345554720,1734342003892,150.0,9.973e-05,2]
[345554721,1734342004043,162.70863991,9.973e-05,2]
[345554723,1734342432111,-392.19,0.00016576,2]
[345554724,1734342432134,-187.39520587,0.00018132,2]
[345554725,1734342437106,-19.83017461,0.00018132,2]
[345554726,1734342437128,-200.0,0.00018214,2]
[345554727,1734342437149,-151.52878965,0.00018219,2]
[345554728,1734342451085,-257.68320729,0.00018219,2]
[345554729,1734342452134,-302.22386418,0.00018219,2]
[345554730,1734342453136,-604.88074023,0.00018219,2]
[345554734,1734342547096,-1434.68339865,0.00018219,2]
[345554735,1734342547129,-385.57840135,0.00018219,2]
[345554736,1734342555109,-250.0,0.00018212,2]
[345554737,1734342555132,-137.02141167,0.00018219,2]
[345554738,1734342559110,-277.40018698,0.00018219,2]
[345554739,1734342559134,-183.28772854,0.00018232,2]
[345554740,1734342566082,-66.71227146,0.00018232,2]
[345554741,1734342566102,-500.0,0.00018247,2]
[345554742,1734342566127,-500.0,0.00018247,2]
[345554743,1734342566148,-2700.02,0.00018248,2]
[345554744,1734342566169,-660.45067706,0.00018248,2]
[345554745,1734342569117,-11599.133,0.00018248,2]
[345554746,1734342572137,-23452.47632294,0.00018248,2]
[345554747,1734342572160,-926.78,0.00018275,2]
[345554748,1734342572180,-186.22,0.00018317,2]
[345554749,1734342572201,-1551.01,0.0001835,2]
[345554750,1734342572224,-250.0,0.00018406,2]
[345554751,1734342572248,-1000.0,0.00018425,2]
[345554752,1734342572269,-500.0,0.00018438,2]
[345554753,1734342572290,-827.53425144,0.00018687,2]
[345554754,1734342572311,-300.0,0.00018688,2]
[345554755,1734342572331,-689.88009046,0.0001869,2]
[345554756,1734342572352,-379.83,0.00018787,2]
[345554757,1734342606494,800.0,0.00018795,2]
[345554762,1734342632412,-392.19,0.00018839,2]
[345554763,1734342632422,-250.0,0.00018859,2]
[345554764,1734342632433,-509.56,0.00018875,2]
[345554765,1734342632442,-495.81,0.00018883,2]
[345554766,1734342632452,-499.38,0.00018896,2]
[345554767,1734342632461,-500.0,0.00018904,2]
[345554768,1734342632470,-496.76,0.00018904,2]
[345554769,1734342636503,-3.24,0.00018904,2]
[345554770,1734342636514,-494.85,0.00018914,2]
[345554771,1734342636523,-3824.0,0.00018923,2]
[345554772,1734342636533,-150.0,0.00018929,2]
[345554773,1734342636543,-827.53425144,0.0001893,2]
[345554774,1734342636553,-502.45,0.00018941,2]
[345554775,1734342636564,-526.97,0.0001898,2]
[345554776,1734342636574,-1000.0,0.00019,2]
[345554777,1734342636584,-10808.08544399,0.00019,2]
[345554778,1734342636594,-827.53425144,0.00019172,2]
[345554779,1734342636603,-500.0,0.00019205,2]
[345554780,1734342636613,-168.35,0.00019297,2]
[345554781,1734342636622,-497.72,0.0001936,2]
[345554782,1734342636633,-1634.0,0.000194,2]
[345554783,1734342636643,-1302.0,0.000194,2]
[345554784,1734342636652,-827.53425144,0.00019415,2]
[345554785,1734342636662,-400.75645063,0.00019432,2]
[345554786,1734342636672,-1002.0,0.000195,3]
[345554787,1734342636683,-1000.0,0.000195,2]
[345554788,1734342636692,-1003.0,0.000195,2]
[345554789,1734342636702,-1000.0,0.000195,3]
[345554790,1734342636711,-1000.0,0.000195,3]
[345554791,1734342636721,-2603.62136,0.000195,2]
[345554792,1734342636732,-1527.39,0.000195,2]
[345554793,1734342636741,-171.97244513,0.00019599,2]
[345554794,1734342636751,-3780.4527,0.00019599,2]
[345554795,1734342636762,-7727.46579909,0.000196,2]
[345554815,1734342637143,-1058.27490091,0.000196,2]
[345554817,1734342637152,-1000.0,0.000196,2]
[345554819,1734342637161,-2500.0,0.000196,2]
[345554821,1734342637171,-1800.32528351,0.000196,2]
[345554824,1734342637188,-1713.34871649,0.000196,2]
[345554825,1734342637197,-189.614,0.000196,2]
[345554827,1734342637207,-166.98675492,0.000196,2]
[345554829,1734342637216,-178.7795897,0.000196,2]
[345554831,1734342637225,-827.53425144,0.00019657,2]
[345554834,1734342637235,-150.92,0.00019689,2]
[345554836,1734342637244,-5283.22,0.00019689,2]
[345554838,1734342637253,-5283.22,0.00019689,2]
[345554840,1734342637262,-3236.87464486,0.00019689,2]
[345554853,1734342637377,-2046.34535514,0.00019689,2]
[345554854,1734342637386,-3290.00317886,0.00019689,2]
[345554855,1734342637437,-1993.21682114,0.00019689,2]
[345554856,1734342637447,-5283.22,0.00019689,2]
[345554857,1734342637456,-500.14,0.0001969,2]
[345554858,1734342637465,-2663.49885744,0.00019699,2]
[345554859,1734342637474,-221.7158,0.00019699,2]
[345554860,1734342637483,-467846.12070005,0.000197,4]
[345554861,1734342637600,-262.53214004,0.000197,4]
[345554862,1734342637658,-41912.37409462,0.000197,4]
[345554863,1734342637716,-11982.9974,0.000197,4]
[345555036,1734342639622,-168.83101149,0.0001969,2]
[345555038,1734342639632,-2808.46898851,0.000197,4]
[345555040,1734342639644,-1199.35577334,0.000197,4]